[Event "*** Titled Tuesday Blitz"]
[Site "Chess.com"]
[Date "2021.03.02"]
[Round "8"]
[White "masrahi"]
[Black "Aslanov_Umid"]
[Result "0-1"]
[WhiteElo "2217"]
[BlackElo "2395"]
[TimeControl "180+1"]
[EndTime "11:31:23 PST"]
[Termination "Aslanov_Umid won on time"]

1. d4 {[%clk 0:03:00.9]} 1... d5 {[%clk 0:02:59.6]} 2. Bf4 {[%clk 0:03:00]} 2...
Nf6 {[%clk 0:02:58.9]} 3. e3 {[%clk 0:03:00.6]} 3... c5 {[%clk 0:02:59]} 4. c3
{[%clk 0:03:00.1]} 4... Nc6 {[%clk 0:02:59.3]} 5. Nd2 {[%clk 0:03:00.1]} 5...
Bf5 {[%clk 0:02:58.8]} 6. Qb3 {[%clk 0:02:58]} 6... Qb6 {[%clk 0:02:51.8]} 7.
dxc5 {[%clk 0:02:57.2]} 7... Qxb3 {[%clk 0:02:46.4]} 8. axb3 {[%clk 0:02:58.1]}
8... e5 {[%clk 0:02:45]} 9. Bg3 {[%clk 0:02:57.3]} 9... Bxc5 {[%clk 0:02:43.5]}
10. Ngf3 {[%clk 0:02:53.5]} 10... Bd6 {[%clk 0:02:39.4]} 11. Bb5 {[%clk
0:02:46.4]} 11... Nd7 {[%clk 0:02:32.9]} 12. Nd4 {[%clk 0:02:44.4]} 12... exd4
{[%clk 0:02:26.7]} 13. Bxd6 {[%clk 0:02:43.6]} 13... dxe3 {[%clk 0:02:27]} 14.
fxe3 {[%clk 0:02:42.9]} 14... a6 {[%clk 0:02:27]} 15. Be2 {[%clk 0:02:33.5]}
15... Nde5 {[%clk 0:02:26.1]} 16. O-O {[%clk 0:02:28.5]} 16... Bg6 {[%clk
0:02:24.6]} 17. b4 {[%clk 0:02:16.5]} 17... Kd7 {[%clk 0:02:24]} 18. Bc5 {[%clk
0:02:14.7]} 18... Nd3 {[%clk 0:02:21.3]} 19. Bxd3 {[%clk 0:02:11.7]} 19... Bxd3
{[%clk 0:02:22.2]} 20. Rxf7+ {[%clk 0:02:11.9]} 20... Ke6 {[%clk 0:02:21.2]} 21.
Rxb7 {[%clk 0:02:10.7]} 21... g5 {[%clk 0:02:12.1]} 22. Nf3 {[%clk 0:02:06.8]}
22... g4 {[%clk 0:02:11.6]} 23. Nd4+ {[%clk 0:02:04.1]} 23... Nxd4 {[%clk
0:02:11.5]} 24. Bxd4 {[%clk 0:02:03.6]} 24... Rhf8 {[%clk 0:02:06.7]} 25. Rb6+
{[%clk 0:02:01.9]} 25... Kd7 {[%clk 0:02:06.3]} 26. Bc5 {[%clk 0:01:51.2]} 26...
Rf5 {[%clk 0:02:05.4]} 27. Rb7+ {[%clk 0:01:43.6]} 27... Kc6 {[%clk 0:02:04.2]}
28. Rxh7 {[%clk 0:01:43.9]} 28... Re8 {[%clk 0:02:01.1]} 29. Rh6+ {[%clk
0:01:42]} 29... Kb7 {[%clk 0:01:58.7]} 30. Rg6 {[%clk 0:01:37.7]} 30... g3
{[%clk 0:01:50.5]} 31. Rxg3 {[%clk 0:01:33.8]} 31... Re6 {[%clk 0:01:49]} 32. h3
{[%clk 0:01:27]} 32... Ref6 {[%clk 0:01:46]} 33. Kh2 {[%clk 0:01:23.8]} 33...
Rf2 {[%clk 0:01:43.8]} 34. Rd1 {[%clk 0:01:12.3]} 34... Be4 {[%clk 0:01:42.8]}
35. c4 {[%clk 0:01:10.6]} 35... Re2 {[%clk 0:01:37.6]} 36. cxd5 {[%clk
0:01:09.4]} 36... Rff2 {[%clk 0:01:35.8]} 37. Rg1 {[%clk 0:01:09.3]} 37... Rxb2
{[%clk 0:01:26.5]} 38. d6 {[%clk 0:01:08]} 38... Kc6 {[%clk 0:01:25.9]} 39. h4
{[%clk 0:01:07.6]} 39... a5 {[%clk 0:01:22.7]} 40. Rg4 {[%clk 0:00:51.9]} 40...
Bf3 {[%clk 0:01:11.7]} 41. d7 {[%clk 0:00:42.6]} 41... Kxd7 {[%clk 0:01:06.7]}
42. Rg7+ {[%clk 0:00:41.5]} 42... Kc6 {[%clk 0:01:05.9]} 43. e4 {[%clk
0:00:39.8]} 43... Rfc2 {[%clk 0:01:01.2]} 44. Rg6+ {[%clk 0:00:38.1]} 44... Kc7
{[%clk 0:00:55.3]} 45. Bd6+ {[%clk 0:00:33]} 45... Kd7 {[%clk 0:00:53.1]} 46. e5
{[%clk 0:00:31]} 46... axb4 {[%clk 0:00:51.2]} 47. Kh3 {[%clk 0:00:20.2]} 47...
Be4 {[%clk 0:00:49.7]} 48. Rg7+ {[%clk 0:00:19.6]} 48... Ke6 {[%clk 0:00:48]}
49. h5 {[%clk 0:00:19]} 49... Rc3+ {[%clk 0:00:45.7]} 50. Kh4 {[%clk 0:00:19]}
50... b3 {[%clk 0:00:31.2]} 51. h6 {[%clk 0:00:15.3]} 51... Re2 {[%clk
0:00:29.1]} 52. Ba3 {[%clk 0:00:14.5]} 52... Ra2 {[%clk 0:00:19.2]} 53. h7
{[%clk 0:00:10.8]} 53... Bxh7 {[%clk 0:00:18.8]} 54. Rxh7 {[%clk 0:00:11.7]}
54... Rxa3 {[%clk 0:00:19.3]} 55. Rb7 {[%clk 0:00:11]} 55... Kxe5 {[%clk
0:00:18.9]} 56. g4 {[%clk 0:00:10.7]} 56... Ra2 {[%clk 0:00:17.5]} 57. Kg5
{[%clk 0:00:09.6]} 57... Rh2 {[%clk 0:00:15.9]} 58. Rb1 {[%clk 0:00:08.3]} 58...
Rhh3 {[%clk 0:00:14.9]} 59. Rb2 {[%clk 0:00:07]} 59... Kd4 {[%clk 0:00:15.1]}
60. Rd2+ {[%clk 0:00:06.1]} 60... Rcd3 {[%clk 0:00:14.6]} 61. Rxb3 {[%clk
0:00:03]} 61... Rxd2 {[%clk 0:00:11.1]} 62. Rxh3 {[%clk 0:00:02.7]} 62... Ke5
{[%clk 0:00:12]} 63. Rh2 {[%clk 0:00:01.6]} 63... Rxh2 {[%clk 0:00:11.3]} 0-1

[Event "*** Titled Tuesday Blitz"]
[Site "Chess.com"]
[Date "2021.03.02"]
[Round "8"]
[White "FMLorneTwitch"]
[Black "Matensien"]
[Result "1-0"]
[WhiteElo "2418"]
[BlackElo "2472"]
[TimeControl "180+1"]
[EndTime "11:31:25 PST"]
[Termination "FMLorneTwitch won on time"]

1. d4 {[%clk 0:03:00.9]} 1... Nf6 {[%clk 0:02:59.4]} 2. Bg5 {[%clk 0:02:58.5]}
2... Ne4 {[%clk 0:02:59.2]} 3. Bf4 {[%clk 0:02:57.2]} 3... c5 {[%clk 0:02:59.7]}
4. f3 {[%clk 0:02:55.3]} 4... Qa5+ {[%clk 0:02:52.3]} 5. c3 {[%clk 0:02:54.3]}
5... Nf6 {[%clk 0:02:52.9]} 6. Nd2 {[%clk 0:02:54.9]} 6... cxd4 {[%clk 0:02:53]}
7. Nb3 {[%clk 0:02:55.3]} 7... Qb6 {[%clk 0:02:50.4]} 8. Qxd4 {[%clk 0:02:55.7]}
8... d6 {[%clk 0:02:48.7]} 9. Qxb6 {[%clk 0:02:52.3]} 9... axb6 {[%clk
0:02:48.1]} 10. e4 {[%clk 0:02:51.8]} 10... e5 {[%clk 0:02:47.9]} 11. Be3 {[%clk
0:02:49.3]} 11... Be6 {[%clk 0:02:48.3]} 12. Bb5+ {[%clk 0:02:43.2]} 12... Nbd7
{[%clk 0:02:46.6]} 13. c4 {[%clk 0:02:40.1]} 13... Be7 {[%clk 0:02:43.6]} 14.
Ne2 {[%clk 0:02:23]} 14... O-O {[%clk 0:02:44.1]} 15. O-O {[%clk 0:02:15.4]}
15... Rfc8 {[%clk 0:02:44.4]} 16. Rfc1 {[%clk 0:02:14.4]} 16... Nc5 {[%clk
0:02:43.2]} 17. Nxc5 {[%clk 0:02:07.9]} 17... dxc5 {[%clk 0:02:33.8]} 18. Nc3
{[%clk 0:01:48.3]} 18... Rd8 {[%clk 0:02:34.3]} 19. Nd5 {[%clk 0:01:40.5]} 19...
Bxd5 {[%clk 0:02:34.5]} 20. cxd5 {[%clk 0:01:36.7]} 20... Bd6 {[%clk 0:02:34.7]}
21. a4 {[%clk 0:01:34.1]} 21... Ne8 {[%clk 0:02:34.4]} 22. b3 {[%clk 0:01:29.4]}
22... Nc7 {[%clk 0:02:34.7]} 23. Be2 {[%clk 0:01:28.4]} 23... f6 {[%clk
0:02:34.2]} 24. Rab1 {[%clk 0:01:22.1]} 24... Rd7 {[%clk 0:02:26]} 25. Kf2
{[%clk 0:01:20.3]} 25... g6 {[%clk 0:02:25.6]} 26. g4 {[%clk 0:01:19.5]} 26...
Kf7 {[%clk 0:02:24.5]} 27. h4 {[%clk 0:01:17.5]} 27... Na6 {[%clk 0:02:23.5]}
28. Bb5 {[%clk 0:01:13.9]} 28... Rdd8 {[%clk 0:02:19.8]} 29. Rh1 {[%clk
0:01:13.9]} 29... Nb4 {[%clk 0:02:18.5]} 30. Ke2 {[%clk 0:01:11.4]} 30... Na2
{[%clk 0:02:14.6]} 31. Kd2 {[%clk 0:01:09.3]} 31... Nb4 {[%clk 0:02:13.8]} 32.
Rbf1 {[%clk 0:01:07.8]} 32... f5 {[%clk 0:02:09.7]} 33. gxf5 {[%clk 0:01:07.4]}
33... gxf5 {[%clk 0:02:10.6]} 34. Rfg1 {[%clk 0:01:04.5]} 34... Rg8 {[%clk
0:02:08.8]} 35. Bd7 {[%clk 0:00:59.7]} 35... Rxg1 {[%clk 0:02:00]} 36. Rxg1
{[%clk 0:01:00.6]} 36... f4 {[%clk 0:01:55.9]} 37. Bf2 {[%clk 0:01:00.2]} 37...
Rh8 {[%clk 0:00:34.4]} 38. h5 {[%clk 0:00:52.4]} 38... Be7 {[%clk 0:00:29]} 39.
Kc3 {[%clk 0:00:32.8]} 39... Na6 {[%clk 0:00:28.9]} 40. Be6+ {[%clk 0:00:24.4]}
40... Kf8 {[%clk 0:00:27.8]} 41. h6 {[%clk 0:00:21]} 41... Bf6 {[%clk
0:00:26.1]} 42. Rg4 {[%clk 0:00:19.6]} 42... Nc7 {[%clk 0:00:25.6]} 43. Bd7
{[%clk 0:00:18.3]} 43... Rg8 {[%clk 0:00:19.7]} 44. Rxg8+ {[%clk 0:00:17.4]}
44... Kxg8 {[%clk 0:00:20.6]} 45. Bf5 {[%clk 0:00:17.6]} 45... Bg5 {[%clk
0:00:20.1]} 46. d6 {[%clk 0:00:16.6]} 46... Na6 {[%clk 0:00:18.9]} 47. Kc4
{[%clk 0:00:16]} 47... Nb4 {[%clk 0:00:18.2]} 48. Be1 {[%clk 0:00:14.7]} 48...
Nc6 {[%clk 0:00:16.1]} 49. Kd5 {[%clk 0:00:12.6]} 49... Kf7 {[%clk 0:00:14.9]}
50. Bd7 {[%clk 0:00:10.5]} 50... Nd4 {[%clk 0:00:07.2]} 51. Bg4 {[%clk
0:00:05.3]} 51... Ke8 {[%clk 0:00:05.3]} 52. Bf2 {[%clk 0:00:05]} 52... Bxh6
{[%clk 0:00:05]} 53. Kxe5 {[%clk 0:00:04]} 53... Nxb3 {[%clk 0:00:03.9]} 54. Kd5
{[%clk 0:00:03.7]} 54... Bg5 {[%clk 0:00:03.9]} 55. e5 {[%clk 0:00:04]} 55...
Na5 {[%clk 0:00:03.1]} 56. e6 {[%clk 0:00:04]} 56... Nc6 {[%clk 0:00:02.8]} 57.
Bh5+ {[%clk 0:00:03.7]} 57... Kd8 {[%clk 0:00:02.9]} 58. Be1 {[%clk 0:00:04.2]}
58... Bf6 {[%clk 0:00:02.3]} 59. Bd2 {[%clk 0:00:04.3]} 59... Bg5 {[%clk
0:00:02.6]} 60. Bc3 {[%clk 0:00:02.9]} 60... h6 {[%clk 0:00:03]} 61. Bg7 {[%clk
0:00:02.7]} 61... Nd4 {[%clk 0:00:02.9]} 62. Bg4 {[%clk 0:00:02.4]} 62... Nxe6
{[%clk 0:00:02.7]} 63. Bxe6 {[%clk 0:00:02.1]} 63... h5 {[%clk 0:00:03.1]} 64.
Bh3 {[%clk 0:00:01.8]} 64... h4 {[%clk 0:00:03.4]} 65. Be5 {[%clk 0:00:02.2]}
65... Bh6 {[%clk 0:00:02.6]} 66. Ke4 {[%clk 0:00:02.5]} 66... Bg5 {[%clk
0:00:02.9]} 67. Bxf4 {[%clk 0:00:03]} 67... Bxf4 {[%clk 0:00:02.8]} 68. Kxf4
{[%clk 0:00:03.9]} 68... c4 {[%clk 0:00:03.1]} 69. Ke4 {[%clk 0:00:04.4]} 69...
Ke8 {[%clk 0:00:02.7]} 70. Kd4 {[%clk 0:00:04.7]} 1-0

[Event "*** Titled Tuesday Blitz"]
[Site "Chess.com"]
[Date "2021.03.02"]
[Round "8"]
[White "AwareIdea"]
[Black "Mbneu"]
[Result "0-1"]
[WhiteElo "2437"]
[BlackElo "2318"]
[TimeControl "180+1"]
[EndTime "11:31:32 PST"]
[Termination "Mbneu won by resignation"]

1. d4 {[%clk 0:02:54.3]} 1... Nf6 {[%clk 0:02:59]} 2. c4 {[%clk 0:02:54.2]} 2...
c5 {[%clk 0:02:59.3]} 3. Nf3 {[%clk 0:02:50.8]} 3... cxd4 {[%clk 0:02:57.7]} 4.
Nxd4 {[%clk 0:02:51.7]} 4... e5 {[%clk 0:02:58.1]} 5. Nb5 {[%clk 0:02:45.6]}
5... d5 {[%clk 0:02:58.4]} 6. cxd5 {[%clk 0:02:43.9]} 6... Bc5 {[%clk
0:02:58.8]} 7. N1c3 {[%clk 0:02:38.1]} 7... O-O {[%clk 0:02:47.2]} 8. g3 {[%clk
0:02:32.5]} 8... e4 {[%clk 0:02:44.4]} 9. Bg2 {[%clk 0:02:30.5]} 9... e3 {[%clk
0:02:42.7]} 10. Bxe3 {[%clk 0:02:25]} 10... Bxe3 {[%clk 0:02:41.7]} 11. fxe3
{[%clk 0:02:25.9]} 11... Ng4 {[%clk 0:02:41.2]} 12. Qd4 {[%clk 0:02:19.4]} 12...
Re8 {[%clk 0:02:35.1]} 13. e4 {[%clk 0:02:18.1]} 13... a6 {[%clk 0:02:32.9]} 14.
Na3 {[%clk 0:02:14.1]} 14... b5 {[%clk 0:02:30.9]} 15. Nc2 {[%clk 0:02:12]}
15... Nd7 {[%clk 0:02:24.4]} 16. h3 {[%clk 0:02:10]} 16... Nge5 {[%clk
0:02:21.9]} 17. O-O {[%clk 0:02:08]} 17... Qg5 {[%clk 0:01:44.2]} 18. Qe3 {[%clk
0:01:58.1]} 18... Qg6 {[%clk 0:01:43.6]} 19. Qf4 {[%clk 0:01:53.7]} 19... Nf6
{[%clk 0:01:36.8]} 20. g4 {[%clk 0:01:46.3]} 20... h5 {[%clk 0:01:20.8]} 21. g5
{[%clk 0:01:39.1]} 21... Nh7 {[%clk 0:01:20.4]} 22. h4 {[%clk 0:01:34.8]} 22...
f6 {[%clk 0:01:07.2]} 23. gxf6 {[%clk 0:01:33.1]} 23... Nxf6 {[%clk 0:01:04.5]}
24. Ne3 {[%clk 0:01:14.3]} 24... Nh7 {[%clk 0:00:53.5]} 25. Nf5 {[%clk
0:01:11.1]} 25... Ng4 {[%clk 0:00:47.9]} 26. Bf3 {[%clk 0:00:55]} 26... Bxf5
{[%clk 0:00:45.2]} 27. exf5 {[%clk 0:00:52.4]} 27... Qb6+ {[%clk 0:00:44.3]} 28.
Kh1 {[%clk 0:00:47.2]} 28... Nhf6 {[%clk 0:00:32]} 29. d6 {[%clk 0:00:45]} 29...
Rad8 {[%clk 0:00:19.6]} 30. Nd5 {[%clk 0:00:41]} 30... Nxd5 {[%clk 0:00:19.3]}
31. Bxd5+ {[%clk 0:00:41.9]} 31... Kh8 {[%clk 0:00:19.7]} 32. Bf3 {[%clk
0:00:35.2]} 32... Qxd6 {[%clk 0:00:18.3]} 33. Qxd6 {[%clk 0:00:32.3]} 33... Rxd6
{[%clk 0:00:17.2]} 34. Rac1 {[%clk 0:00:21.2]} 34... Rd2 {[%clk 0:00:16]} 35.
Rc6 {[%clk 0:00:10]} 35... Rxb2 {[%clk 0:00:14.8]} 36. Bxg4 {[%clk 0:00:10.2]}
36... hxg4 {[%clk 0:00:14.1]} 37. f6 {[%clk 0:00:10.4]} 37... gxf6 {[%clk
0:00:12.5]} 38. Rfxf6 {[%clk 0:00:10.5]} 38... Rexe2 {[%clk 0:00:13.1]} 39. Rh6+
{[%clk 0:00:09.8]} 39... Kg7 {[%clk 0:00:13.3]} 40. Rhg6+ {[%clk 0:00:09.9]}
40... Kf7 {[%clk 0:00:13.4]} 41. Rxg4 {[%clk 0:00:10]} 41... Re1+ {[%clk
0:00:10.6]} 42. Rg1 {[%clk 0:00:09.5]} 42... Rxg1+ {[%clk 0:00:10.6]} 43. Kxg1
{[%clk 0:00:10.4]} 43... Rxa2 {[%clk 0:00:11.2]} 44. Rb6 {[%clk 0:00:07.8]}
44... Kg7 {[%clk 0:00:09.6]} 45. Kf1 {[%clk 0:00:06.9]} 45... Ra4 {[%clk
0:00:07.2]} 46. Kg2 {[%clk 0:00:05.7]} 46... b4 {[%clk 0:00:07.1]} 47. Kf3
{[%clk 0:00:05.5]} 47... a5 {[%clk 0:00:05.3]} 48. Kg4 {[%clk 0:00:05.8]} 48...
b3+ {[%clk 0:00:05.7]} 49. Kg5 {[%clk 0:00:06.1]} 49... Rb4 {[%clk 0:00:06.3]}
50. Ra6 {[%clk 0:00:06.4]} 50... b2 {[%clk 0:00:06.3]} 51. Ra7+ {[%clk
0:00:06.9]} 51... Kf8 {[%clk 0:00:05.7]} 52. Ra8+ {[%clk 0:00:07]} 52... Ke7
{[%clk 0:00:05.9]} 53. Ra7+ {[%clk 0:00:07.2]} 53... Kd6 {[%clk 0:00:06.2]} 54.
Ra6+ {[%clk 0:00:07.5]} 54... Kc7 {[%clk 0:00:06.6]} 55. Ra7+ {[%clk 0:00:06.2]}
55... Rb7 {[%clk 0:00:05.8]} 56. Rxa5 {[%clk 0:00:05.7]} 56... b1=Q {[%clk
0:00:05.5]} 57. Rf5 {[%clk 0:00:06.4]} 57... Rb5 {[%clk 0:00:04.7]} 58. Rxb5
{[%clk 0:00:05.5]} 58... Qxb5+ {[%clk 0:00:05.2]} 59. Kg6 {[%clk 0:00:06.4]}
59... Qc6+ {[%clk 0:00:04.5]} 60. Kg5 {[%clk 0:00:06.1]} 60... Qg2+ {[%clk
0:00:05]} 61. Kh6 {[%clk 0:00:05.7]} 61... Qc6+ {[%clk 0:00:03.9]} 62. Kg5
{[%clk 0:00:05.4]} 62... Qg2+ {[%clk 0:00:04.4]} 63. Kh6 {[%clk 0:00:05.4]}
63... Qg4 {[%clk 0:00:04.2]} 64. h5 {[%clk 0:00:05.8]} 64... Kd7 {[%clk
0:00:05]} 65. Kh7 {[%clk 0:00:06.3]} 65... Qxh5+ {[%clk 0:00:05.3]} 66. Kg7
{[%clk 0:00:07.2]} 66... Qf5 {[%clk 0:00:05.4]} 67. Kh6 {[%clk 0:00:07.2]} 67...
Qe6+ {[%clk 0:00:06.3]} 68. Kg7 {[%clk 0:00:07.5]} 68... Kd6 {[%clk 0:00:07.2]}
69. Kf8 {[%clk 0:00:07.9]} 69... Ke5 {[%clk 0:00:08.1]} 70. Kg7 {[%clk
0:00:08.3]} 70... Kf5 {[%clk 0:00:09]} 71. Kh7 {[%clk 0:00:07.6]} 71... Kg5
{[%clk 0:00:09.9]} 72. Kg7 {[%clk 0:00:07.9]} 72... Qe7+ {[%clk 0:00:09.9]} 73.
Kg8 {[%clk 0:00:08.1]} 73... Kg6 {[%clk 0:00:10.1]} 0-1

[Event "*** Titled Tuesday Blitz"]
[Site "Chess.com"]
[Date "2021.03.02"]
[Round "8"]
[White "Nozdrachev_Leonid"]
[Black "Loy_Konstantin"]
[Result "1/2-1/2"]
[WhiteElo "2530"]
[BlackElo "2356"]
[TimeControl "180+1"]
[EndTime "11:31:36 PST"]
[Termination "Game drawn - insufficient material"]

1. e4 {[%clk 0:03:00.9]} 1... c5 {[%clk 0:02:59.6]} 2. c3 {[%clk 0:02:58.4]}
2... Nf6 {[%clk 0:02:59.1]} 3. e5 {[%clk 0:02:58.6]} 3... Nd5 {[%clk 0:02:59.7]}
4. d4 {[%clk 0:02:59.2]} 4... cxd4 {[%clk 0:03:00.6]} 5. cxd4 {[%clk 0:03:00]}
5... d6 {[%clk 0:03:01]} 6. Nf3 {[%clk 0:03:00]} 6... Nc6 {[%clk 0:03:01.2]} 7.
Bc4 {[%clk 0:02:59.9]} 7... e6 {[%clk 0:03:01.8]} 8. O-O {[%clk 0:02:59.6]} 8...
Be7 {[%clk 0:03:02]} 9. Re1 {[%clk 0:02:58.9]} 9... O-O {[%clk 0:03:02.3]} 10.
Bd3 {[%clk 0:02:57.9]} 10... dxe5 {[%clk 0:03:00]} 11. dxe5 {[%clk 0:02:55.7]}
11... Ndb4 {[%clk 0:02:59.2]} 12. Be4 {[%clk 0:02:54.6]} 12... Qxd1 {[%clk
0:02:57.8]} 13. Rxd1 {[%clk 0:02:55.5]} 13... Rd8 {[%clk 0:02:41.7]} 14. Rxd8+
{[%clk 0:02:54.6]} 14... Nxd8 {[%clk 0:02:35.9]} 15. Nc3 {[%clk 0:02:54.5]}
15... Bd7 {[%clk 0:02:31.7]} 16. Be3 {[%clk 0:02:52.6]} 16... Bc6 {[%clk
0:02:30.8]} 17. Bxc6 {[%clk 0:02:43.7]} 17... Ndxc6 {[%clk 0:02:30.6]} 18. Rd1
{[%clk 0:02:39.3]} 18... Rd8 {[%clk 0:02:25.6]} 19. Rxd8+ {[%clk 0:02:37]} 19...
Bxd8 {[%clk 0:02:25.7]} 20. Nb5 {[%clk 0:02:28.7]} 20... Nd3 {[%clk 0:02:14.2]}
21. b3 {[%clk 0:02:21.7]} 21... a6 {[%clk 0:02:07.3]} 22. Nd6 {[%clk 0:02:20.8]}
22... b5 {[%clk 0:02:05.9]} 23. Nb7 {[%clk 0:02:08.4]} 23... Bc7 {[%clk
0:02:01.1]} 24. Kf1 {[%clk 0:02:03.3]} 24... Ndxe5 {[%clk 0:01:42.1]} 25. Nxe5
{[%clk 0:02:00.9]} 25... Bxe5 {[%clk 0:01:37.7]} 26. Nc5 {[%clk 0:01:56]} 26...
a5 {[%clk 0:01:33]} 27. Ke2 {[%clk 0:01:55.6]} 27... Bc7 {[%clk 0:01:22.2]} 28.
a4 {[%clk 0:01:44.5]} 28... bxa4 {[%clk 0:01:19.8]} 29. bxa4 {[%clk 0:01:45.4]}
29... Kf8 {[%clk 0:01:13.4]} 30. Kd3 {[%clk 0:01:44.7]} 30... Ke7 {[%clk
0:01:12.4]} 31. Kc4 {[%clk 0:01:44.4]} 31... f5 {[%clk 0:00:51.3]} 32. Kb5
{[%clk 0:01:37.3]} 32... Kd6 {[%clk 0:00:34.6]} 33. Nb7+ {[%clk 0:01:31.7]}
33... Kd5 {[%clk 0:00:34.4]} 34. Bb6 {[%clk 0:01:21.3]} 34... Bxb6 {[%clk
0:00:30]} 35. Kxb6 {[%clk 0:01:22.2]} 35... e5 {[%clk 0:00:30]} 36. g3 {[%clk
0:00:49.6]} 36... g5 {[%clk 0:00:28.9]} 37. Nc5 {[%clk 0:00:45.2]} 37... e4
{[%clk 0:00:27.8]} 38. Nd7 {[%clk 0:00:44.8]} 38... Ne5 {[%clk 0:00:18]} 39.
Nf6+ {[%clk 0:00:35.4]} 39... Kd4 {[%clk 0:00:09.9]} 40. Nxh7 {[%clk 0:00:36.3]}
40... Nf3 {[%clk 0:00:10.1]} 41. Kxa5 {[%clk 0:00:26.3]} 41... f4 {[%clk
0:00:10.5]} 42. Nxg5 {[%clk 0:00:26.1]} 42... Nxg5 {[%clk 0:00:09.2]} 43. gxf4
{[%clk 0:00:25.8]} 43... Nh3 {[%clk 0:00:08]} 44. Kb6 {[%clk 0:00:21.2]} 44...
Nxf2 {[%clk 0:00:08.1]} 45. a5 {[%clk 0:00:21.7]} 45... e3 {[%clk 0:00:08.7]}
46. a6 {[%clk 0:00:22.2]} 46... e2 {[%clk 0:00:09.6]} 47. a7 {[%clk 0:00:22.1]}
47... e1=Q {[%clk 0:00:10.2]} 48. a8=Q {[%clk 0:00:22]} 48... Qb4+ {[%clk
0:00:10.1]} 49. Kc7 {[%clk 0:00:20.4]} 49... Qe7+ {[%clk 0:00:09.4]} 50. Kb6
{[%clk 0:00:19.8]} 50... Qf6+ {[%clk 0:00:09.4]} 51. Ka5 {[%clk 0:00:18.3]}
51... Qf5+ {[%clk 0:00:08.3]} 52. Ka4 {[%clk 0:00:17.4]} 52... Qxf4 {[%clk
0:00:06.5]} 53. Ka3 {[%clk 0:00:15]} 53... Qe3+ {[%clk 0:00:06.2]} 54. Ka2
{[%clk 0:00:14.6]} 54... Qd2+ {[%clk 0:00:06.3]} 55. Ka1 {[%clk 0:00:13.9]}
55... Qc1+ {[%clk 0:00:05.8]} 56. Ka2 {[%clk 0:00:13.9]} 56... Nd3 {[%clk
0:00:06.2]} 57. Qa4+ {[%clk 0:00:12.5]} 57... Kd5 {[%clk 0:00:05.2]} 58. Qb3+
{[%clk 0:00:12.4]} 58... Ke4 {[%clk 0:00:04.7]} 59. h4 {[%clk 0:00:11.4]} 59...
Qd2+ {[%clk 0:00:04]} 60. Ka3 {[%clk 0:00:10.5]} 60... Qc1+ {[%clk 0:00:03.7]}
61. Ka2 {[%clk 0:00:10.4]} 61... Qe3 {[%clk 0:00:02.5]} 62. Qe6+ {[%clk
0:00:09.8]} 62... Kf3 {[%clk 0:00:02.3]} 63. Qf5+ {[%clk 0:00:09.1]} 63... Qf4
{[%clk 0:00:02]} 64. Qxd3+ {[%clk 0:00:08.5]} 64... Kg4 {[%clk 0:00:02.4]} 65.
Qh7 {[%clk 0:00:07.9]} 65... Qf2+ {[%clk 0:00:01.7]} 66. Kb1 {[%clk 0:00:07.1]}
66... Qxh4 {[%clk 0:00:02.6]} 67. Qe4+ {[%clk 0:00:06.6]} 67... Kh5 {[%clk
0:00:02.6]} 68. Qf5+ {[%clk 0:00:06.6]} 68... Qg5 {[%clk 0:00:03.5]} 69. Qf3+
{[%clk 0:00:06.9]} 69... Qg4 {[%clk 0:00:03.7]} 70. Qc3 {[%clk 0:00:06.2]} 70...
Kh4 {[%clk 0:00:04.6]} 71. Qc2 {[%clk 0:00:06.3]} 71... Qg1+ {[%clk 0:00:04.3]}
72. Ka2 {[%clk 0:00:06.3]} 72... Qg3 {[%clk 0:00:05]} 73. Qb2 {[%clk 0:00:06.3]}
73... Kh3 {[%clk 0:00:05.9]} 74. Qh8+ {[%clk 0:00:06]} 74... Qh4 {[%clk
0:00:05.9]} 75. Qb2 {[%clk 0:00:06.9]} 75... Qg3 {[%clk 0:00:06.8]} 76. Qb3
{[%clk 0:00:06.2]} 76... Qxb3+ {[%clk 0:00:05.9]} 77. Kxb3 {[%clk 0:00:06.4]}
1/2-1/2